fUST/lending_fUST_20251004
["ID","MTS","AMOUNT","RATE_DAILY","PERIOD"]
[389156651,1759593043400,-1495.05,0.00019178,2]
[389156653,1759593043410,-500.0,0.00019178,2]
[389156655,1759593043419,-500.0,0.00019178,2]
[389156657,1759593043428,-500.0,0.00019178,2]
[389156659,1759593043438,-500.0,0.00019178,2]
[389156661,1759593043447,-500.0,0.00019178,2]
[389156662,1759593043457,-1031.66,0.00019178,2]
[389156663,1759593043467,-500.0,0.00019178,2]
[389156664,1759593043477,-500.0,0.00019178,2]
[389156665,1759593043486,-500.0,0.00019178,2]
[389156667,1759593043495,-1104.08,0.00019178,2]
[389156669,1759593043505,-4277.11,0.00019178,2]
[389156670,1759593043515,-500.0,0.00019178,2]
[389156671,1759593043524,-2219.31,0.00019178,2]
[389156672,1759593043534,-942.05,0.00019178,2]
[389156673,1759593043544,-959.24,0.00019178,2]
[389156674,1759593043553,-500.0,0.00019178,2]
[389156675,1759593043562,-500.0,0.00019178,2]
[389156676,1759593043573,-500.0,0.00019178,2]
[389156677,1759593043583,-645.52,0.00019178,2]
[389156678,1759593043593,-4584.92,0.00019178,2]
[389156679,1759593043602,-500.0,0.00019178,2]
[389156680,1759593043611,-3358.07,0.00019178,2]
[389156681,1759593043620,-500.0,0.00019178,2]
[389156682,1759593043631,-500.0,0.00019178,2]
[389156683,1759593043640,-500.0,0.00019178,2]
[389156684,1759593043650,-2066.69,0.00019178,2]
[389156685,1759593043659,-477.22318298,0.00019178,2]
[389156686,1759593043668,-500.0,0.00019178,2]
[389156687,1759593043677,-500.0,0.00019178,2]
[389156688,1759593043687,-165.0,0.00019187,2]
[389156689,1759593043696,-300.0,0.000192,2]
[389156690,1759593043706,-11554.28776098,0.00019217,2]
[389156691,1759593043715,-1407.79756957,0.00019254,2]
[389156692,1759593043724,-303.00000303,0.00019278,2]
[389156693,1759593043734,-151.0,0.000193,2]
[389156694,1759593043744,-3165.2,0.00019352,2]
[389156695,1759593043753,-889.31934593,0.00019352,2]
[389156696,1759593043763,-176.84945531,0.00019352,2]
[389156697,1759593043772,-151.0,0.000194,2]
[389156698,1759593043781,-151.0,0.000194,2]
[389156699,1759593043791,-17269.64528687,0.00019438,2]
[389156700,1759593043800,-500.0,0.00019452,2]
[389156701,1759593043810,-465.01439612,0.00019452,2]
[389156702,1759593043819,-426.79960627,0.00019452,2]
[389156703,1759593043828,-500.0,0.00019452,2]
[389156704,1759593043838,-307.90295672,0.00019452,2]
[389156705,1759593043847,-500.0,0.00019452,2]
[389156706,1759593043856,-500.0,0.00019452,2]
[389156707,1759593043866,-500.0,0.00019452,2]
[389156708,1759593043876,-500.0,0.00019452,2]
[389156709,1759593043885,-500.0,0.00019452,2]
[389156710,1759593043895,-500.0,0.00019452,2]
[389156711,1759593043906,-500.0,0.00019452,2]
[389156712,1759593043917,-500.0,0.00019452,2]
[389156713,1759593043928,-500.0,0.00019452,2]
[389156714,1759593043937,-500.0,0.00019452,2]
[389156715,1759593043946,-500.0,0.00019452,2]
[389156716,1759593043956,-500.0,0.00019452,2]
[389156717,1759593043965,-500.0,0.00019452,2]
[389156718,1759593043975,-500.0,0.00019452,2]
[389156719,1759593043986,-500.0,0.00019452,2]
[389156720,1759593043995,-500.0,0.00019452,2]
[389156721,1759593044005,-500.0,0.00019452,2]
[389156722,1759593044015,-175.43988461,0.00019452,2]
[389156724,1759593044024,-337.29365768,0.00019452,2]
[389156726,1759593044034,-500.0,0.00019452,2]
[389156728,1759593044044,-500.0,0.00019452,2]
[389156729,1759593044053,-500.0,0.00019452,2]
[389156730,1759593044062,-500.0,0.00019452,2]
[389156731,1759593044072,-749.21,0.00019452,2]
[389156732,1759593044081,-553.43,0.00019452,2]
[389156733,1759593044091,-500.0,0.00019452,2]
[389156734,1759593044100,-500.0,0.00019452,2]
[389156735,1759593044109,-449.00755382,0.00019452,2]
[389156736,1759593044119,-500.0,0.00019452,2]
[389156737,1759593044129,-500.0,0.00019452,2]
[389156738,1759593044138,-500.0,0.00019452,2]
[389156739,1759593044148,-500.0,0.00019452,2]
[389156740,1759593044157,-500.0,0.00019452,2]
[389156741,1759593044167,-500.0,0.00019452,2]
[389156742,1759593044177,-500.0,0.00019452,2]
[389156743,1759593044186,-500.0,0.00019452,2]
[389156744,1759593044195,-500.0,0.00019452,2]
[389156745,1759593044205,-500.0,0.00019452,2]
[389156746,1759593044215,-500.0,0.00019452,2]
[389156747,1759593044224,-500.0,0.00019452,2]
[389156748,1759593044233,-500.0,0.00019452,2]
[389156749,1759593044242,-500.0,0.00019452,2]
[389156750,1759593044251,-500.0,0.00019452,2]
[389156751,1759593044261,-500.0,0.00019452,2]
[389156752,1759593044270,-500.0,0.00019452,2]
[389156753,1759593044280,-592.33,0.00019452,2]
[389156754,1759593044290,-612.18,0.00019452,2]
[389156755,1759593044299,-500.0,0.00019452,2]
[389156756,1759593044309,-500.0,0.00019452,2]
[389156757,1759593044318,-500.0,0.00019452,2]
[389156758,1759593044327,-295.42193492,0.00019452,2]
[389156759,1759593044337,-500.0,0.00019452,2]
[389156760,1759593044346,-597.37,0.00019452,2]
[389156761,1759593044356,-467.18751227,0.00019452,2]
[389156762,1759593044365,-500.0,0.00019452,2]
[389156763,1759593044374,-500.0,0.00019452,2]
[389156764,1759593044384,-500.0,0.00019452,2]
[389156765,1759593044397,-648.5025742,0.00019452,2]
[389156766,1759593044406,-1880.73,0.00019452,2]
[389156767,1759593044416,-561.95,0.00019452,2]
[389156768,1759593044425,-483.56805913,0.00019452,2]
[389156769,1759593044435,-500.0,0.00019452,2]
[389156770,1759593044445,-1220.52,0.00019452,2]
[389156771,1759593044454,-500.0,0.00019452,2]
[389156772,1759593044463,-500.0,0.00019452,2]
[389156773,1759593044473,-946.68,0.00019452,2]
[389156774,1759593044482,-183.99382041,0.00019452,2]
[389156775,1759593044492,-500.0,0.00019452,2]
[389156776,1759593044502,-500.0,0.00019452,2]
[389156777,1759593044511,-883.67,0.00019452,2]
[389156778,1759593044520,-607.48158416,0.00019452,2]
[389156779,1759593044529,-450.34,0.00019452,2]
[389156780,1759593044539,-500.0,0.00019452,2]
[389156781,1759593044548,-500.0,0.00019452,2]
[389156782,1759593044558,-500.0,0.00019452,2]
[389156783,1759593044567,-500.0,0.00019452,2]
[389156784,1759593044576,-500.0,0.00019452,2]
[389156785,1759593044585,-695.58,0.00019452,2]
[389156786,1759593044595,-500.0,0.00019452,2]
[389156787,1759593044604,-500.0,0.00019452,2]
[389156788,1759593044614,-500.0,0.00019452,2]
[389156789,1759593044624,-592.3338692,0.00019452,2]
[389156790,1759593044633,-500.0,0.00019452,2]
[389156791,1759593044642,-442.81775684,0.00019452,2]
[389156792,1759593044651,-500.0,0.00019452,2]
[389156793,1759593044661,-500.0,0.00019452,2]
[389156794,1759593044670,-500.0,0.00019452,2]
[389156795,1759593044679,-811.13,0.00019452,2]
[389156796,1759593044688,-1711.96,0.00019452,2]
[389156797,1759593044698,-704.65,0.00019452,2]
[389156798,1759593044707,-767.26,0.00019452,2]
[389156799,1759593044716,-500.0,0.00019452,2]
[389156800,1759593044725,-500.0,0.00019452,2]
[389156801,1759593044735,-500.0,0.00019452,2]
[389156802,1759593044744,-500.0,0.00019452,2]
[389156803,1759593044754,-500.0,0.00019452,2]
[389156804,1759593044763,-500.0,0.00019452,2]
[389156805,1759593044772,-924.94,0.00019452,2]
[389156806,1759593044782,-500.0,0.00019452,2]
[389156807,1759593044791,-500.0,0.00019452,2]
[389156808,1759593044800,-500.0,0.00019452,2]
[389156809,1759593044810,-500.0,0.00019452,2]
[389156810,1759593044820,-500.0,0.00019452,2]
[389156811,1759593044829,-207.69572856,0.00019452,2]
[389156812,1759593044839,-500.0,0.00019452,2]
[389156813,1759593044848,-500.0,0.00019452,2]
[389156814,1759593044858,-500.0,0.00019452,2]
[389156815,1759593044868,-823.2,0.00019452,2]
[389156816,1759593044877,-500.0,0.00019452,2]
[389156817,1759593044887,-985.96,0.00019452,2]
[389156818,1759593044896,-500.0,0.00019452,2]
[389156819,1759593044906,-627.27,0.00019452,2]
[389156820,1759593044916,-500.0,0.00019452,2]
[389156821,1759593044925,-500.0,0.00019452,2]
[389156822,1759593044934,-500.0,0.00019452,2]
[389156823,1759593044943,-500.0,0.00019452,2]
[389156824,1759593044952,-532.82,0.00019452,2]
[389156825,1759593044962,-500.0,0.00019452,2]
[389156826,1759593044971,-1949.45,0.00019452,2]
[389156827,1759593044982,-500.0,0.00019452,2]
[389156828,1759593044991,-3303.91,0.00019452,2]
[389156829,1759593045000,-187.21648807,0.00019452,2]
[389156830,1759593045010,-500.0,0.00019452,2]
[389156831,1759593045019,-500.0,0.00019452,2]
[389156832,1759593045028,-500.0,0.00019452,2]
[389156833,1759593045037,-566.96,0.00019452,2]
[389156834,1759593045046,-500.0,0.00019452,2]
[389156835,1759593045055,-500.0,0.00019452,2]
[389156836,1759593045064,-500.0,0.00019452,2]
[389156837,1759593045073,-373.70332433,0.00019452,2]
[389156838,1759593045083,-500.0,0.00019452,2]
[389156839,1759593045093,-500.0,0.00019452,2]
[389156840,1759593045102,-1119.98,0.00019452,2]
[389156841,1759593045112,-500.0,0.00019452,2]
[389156842,1759593045121,-500.0,0.00019452,2]
[389156843,1759593045133,-500.0,0.00019452,2]
[389156844,1759593045142,-500.0,0.00019452,2]
[389156845,1759593045151,-500.0,0.00019452,2]
[389156846,1759593045160,-500.0,0.00019452,2]
[389156847,1759593045169,-500.0,0.00019452,2]
[389156848,1759593045179,-394.86600289,0.00019452,2]
[389156849,1759593045188,-500.0,0.00019452,2]
[389156850,1759593045197,-500.0,0.00019452,2]
[389156851,1759593045206,-500.0,0.00019452,2]
[389156852,1759593045216,-500.0,0.00019452,2]
[389156853,1759593045225,-545.28,0.00019452,2]
[389156854,1759593045235,-1261.68,0.00019452,2]
[389156855,1759593045244,-500.0,0.00019452,2]
[389156856,1759593045254,-500.0,0.00019452,2]
[389156857,1759593045264,-3676.63,0.00019452,2]
[389156858,1759593045273,-637.38,0.00019452,2]
[389156859,1759593045282,-568.41,0.00019452,2]
[389156860,1759593045292,-500.0,0.00019452,2]
[389156861,1759593045301,-500.0,0.00019452,2]
[389156862,1759593045311,-500.0,0.00019452,2]
[389156863,1759593045320,-500.0,0.00019452,2]
[389156864,1759593045329,-500.0,0.00019452,2]
[389156865,1759593045338,-500.0,0.00019452,2]
[389156866,1759593045349,-548.38,0.00019452,2]
[389156867,1759593045359,-3208.65,0.00019452,2]
[389156868,1759593045368,-463.74371845,0.00019452,2]
[389156869,1759593045379,-685.52,0.00019452,2]
[389156870,1759593045392,-500.0,0.00019452,2]
[389156871,1759593045401,-1279.41,0.00019452,2]
[389156872,1759593045410,-551.71955659,0.00019452,2]
[389156873,1759593045420,-643.26,0.00019452,2]
[389156874,1759593045431,-366.32519952,0.00019452,2]
[389156875,1759593045441,-580.84096995,0.00019452,2]
[389156876,1759593045450,-500.0,0.00019452,2]
[389156877,1759593045461,-500.0,0.00019452,2]
[389156878,1759593045472,-500.0,0.00019452,2]
[389156879,1759593045482,-5094.83,0.00019452,2]
[389156880,1759593045491,-1655.05,0.00019452,2]
[389156881,1759593045500,-1432.98,0.00019452,2]
[389156882,1759593045510,-500.0,0.00019452,2]
[389156883,1759593045519,-967.26,0.00019452,2]
[389156884,1759593045528,-500.0,0.00019452,2]
[389156885,1759593045538,-500.0,0.00019452,2]
[389156886,1759593045547,-500.0,0.00019452,2]
[389156887,1759593045557,-4031.17,0.00019452,2]
[389156888,1759593045566,-4495.31,0.00019452,2]
[389156889,1759593045575,-5060.59,0.00019452,2]
[389156890,1759593045585,-500.0,0.00019452,2]
[389156891,1759593045594,-500.0,0.00019452,2]
[389156892,1759593045603,-4043.69,0.00019452,2]
[389156893,1759593045612,-500.0,0.00019452,2]
[389156894,1759593045622,-605.37579285,0.00019452,2]
[389156895,1759593045633,-500.0,0.00019452,2]
[389156896,1759593045643,-500.0,0.00019452,2]
[389156897,1759593045652,-500.0,0.00019452,2]
[389156898,1759593045662,-1469.96,0.00019452,2]
[389156899,1759593045671,-500.0,0.00019452,2]
[389156900,1759593045680,-632.58,0.00019452,2]
[389156901,1759593045689,-500.0,0.00019452,2]
[389156902,1759593045698,-550.31418726,0.00019452,2]
[389156903,1759593045708,-1264.74,0.00019452,2]
[389156904,1759593045718,-500.0,0.00019452,2]
[389156905,1759593045727,-500.0,0.00019452,2]
[389156906,1759593045736,-834.51,0.00019452,2]
[389156907,1759593045746,-1639.5,0.00019452,2]
[389156908,1759593045755,-509.86,0.00019452,2]
[389156909,1759593045764,-500.0,0.00019452,2]
[389156910,1759593045773,-500.0,0.00019452,2]
[389156911,1759593045783,-573.11,0.00019452,2]
[389156912,1759593045793,-500.0,0.00019452,2]
[389156913,1759593045802,-500.0,0.00019452,2]
[389156914,1759593045812,-4288.81,0.00019452,2]
[389156915,1759593045821,-500.0,0.00019452,2]
[389156916,1759593045831,-2260.03,0.00019452,2]
[389156917,1759593045840,-500.0,0.00019452,2]
[389156918,1759593045850,-614.86,0.00019452,2]
[389156919,1759593045859,-572.78,0.00019452,2]
[389156920,1759593045868,-982.23,0.00019452,2]
[389156921,1759593045880,-500.0,0.00019452,2]
[389156922,1759593045890,-500.0,0.00019452,2]
[389156923,1759593045900,-861.39,0.00019452,2]
[389156924,1759593045909,-711.3,0.00019452,2]
[389156925,1759593045919,-1169.22,0.00019452,2]
[389156926,1759593045928,-745.87,0.00019452,2]
[389156927,1759593045937,-769.58,0.00019452,2]
[389156928,1759593045947,-195.3323338,0.00019452,2]
[389156929,1759593045957,-500.0,0.00019452,2]
[389156930,1759593045966,-1039.1,0.00019452,2]
[389156931,1759593045975,-586.44,0.00019452,2]
[389156932,1759593045985,-500.0,0.00019452,2]
[389156933,1759593045995,-5376.96,0.00019452,2]
[389156934,1759593046004,-500.0,0.00019452,2]
[389156935,1759593046014,-500.0,0.00019452,2]
[389156936,1759593046023,-2325.11,0.00019452,2]
[389156937,1759593046033,-500.0,0.00019452,2]
[389156938,1759593046042,-1184.17,0.00019452,2]
[389156939,1759593046052,-323.16190074,0.00019452,2]
[389156940,1759593046061,-500.0,0.00019452,2]
[389156941,1759593046071,-500.0,0.00019452,2]
[389156942,1759593046080,-2810.27,0.00019452,2]
[389156943,1759593046089,-500.0,0.00019452,2]
[389156944,1759593046098,-500.0,0.00019452,2]
[389156945,1759593046108,-500.0,0.00019452,2]
[389156946,1759593046117,-500.0,0.00019452,2]
[389156947,1759593046127,-570.71,0.00019452,2]
[389156948,1759593046136,-628.79,0.00019452,2]
[389156949,1759593046145,-761.94,0.00019452,2]
[389156950,1759593046155,-764.12,0.00019452,2]
[389156951,1759593046164,-500.0,0.00019452,2]
[389156953,1759593046174,-1631.41,0.00019452,2]
[389156954,1759593046183,-483.43029706,0.00019452,2]
[389156955,1759593046193,-500.0,0.00019452,2]
[389156956,1759593046202,-500.0,0.00019452,2]
[389156957,1759593046211,-1495.3,0.00019452,2]
[389156958,1759593046220,-2092.97,0.00019452,2]
[389156959,1759593046229,-1174.21,0.00019452,2]
[389156960,1759593046239,-500.0,0.00019452,2]
[389156961,1759593046248,-663.28,0.00019452,2]
[389156962,1759593046257,-1969.15,0.00019452,2]
[389156963,1759593046267,-500.0,0.00019452,2]
[389156965,1759593046276,-1062.03,0.00019452,2]
[389156966,1759593046286,-680.83,0.00019452,2]
[389156967,1759593046295,-596.45,0.00019452,2]
[389156968,1759593046304,-2706.53,0.00019452,2]
[389156969,1759593046314,-5236.69,0.00019452,2]
[389156970,1759593046324,-500.0,0.00019452,2]
[389156971,1759593046335,-500.0,0.00019452,2]
[389156972,1759593046344,-500.0,0.00019452,2]
[389156973,1759593046354,-722.39,0.00019452,2]
[389156974,1759593046363,-676.08,0.00019452,2]
[389156975,1759593046373,-500.0,0.00019452,2]
[389156976,1759593046383,-622.6,0.00019452,2]
[389156977,1759593046396,-500.0,0.00019452,2]
[389156978,1759593046408,-770.23,0.00019452,2]
[389156979,1759593046417,-596.04,0.00019452,2]
[389156980,1759593046427,-1625.7,0.00019452,2]
[389156981,1759593046436,-500.0,0.00019452,2]
[389156982,1759593046446,-5806.93,0.00019452,2]
[389156983,1759593046456,-1512.93,0.00019452,2]
[389156984,1759593046465,-667.12,0.00019452,2]
[389156985,1759593046475,-500.0,0.00019452,2]
[389156986,1759593046484,-1495.05,0.00019452,2]
[389156987,1759593046493,-500.0,0.00019452,2]
[389156988,1759593046503,-500.0,0.00019452,2]
[389156989,1759593046512,-500.0,0.00019452,2]
[389156990,1759593046522,-500.0,0.00019452,2]
[389156991,1759593046531,-1031.66,0.00019452,2]
[389156992,1759593046541,-500.0,0.00019452,2]
[389156993,1759593046550,-500.0,0.00019452,2]
[389156994,1759593046560,-500.0,0.00019452,2]
[389156995,1759593046570,-1104.08,0.00019452,2]
[389156996,1759593046579,-4277.11,0.00019452,2]
[389156997,1759593046588,-500.0,0.00019452,2]
[389156998,1759593046598,-2219.31,0.00019452,2]
[389156999,1759593046608,-942.05,0.00019452,2]
[389157000,1759593046618,-959.24,0.00019452,2]
[389157001,1759593046627,-500.0,0.00019452,2]
[389157002,1759593046636,-500.0,0.00019452,2]
[389157003,1759593046646,-500.0,0.00019452,2]
[389157004,1759593046656,-645.52,0.00019452,2]
[389157005,1759593046665,-4584.92,0.00019452,2]
[389157006,1759593046675,-500.0,0.00019452,2]
[389157007,1759593046684,-3358.07,0.00019452,2]
[389157008,1759593046694,-435.7116071,0.00019452,2]
[389157009,1759593046704,-500.0,0.00019452,2]
[389157010,1759593046714,-500.0,0.00019452,2]
[389157011,1759593046723,-2066.69,0.00019452,2]
[389157012,1759593046733,-345.71553071,0.00019452,2]
[389157013,1759593046742,-500.0,0.00019452,2]
[389157014,1759593046751,-303.00000303,0.00019467,2]
[389157015,1759593046761,-500.0,0.00019473,2]
[389157016,1759593046771,-500.0,0.00019473,2]
[389157017,1759593046780,-500.0,0.00019473,2]
[389157018,1759593046789,-500.0,0.00019473,2]
[389157019,1759593046798,-500.0,0.00019479,2]
[389157020,1759593046808,-506.45906511,0.00019479,2]
[389157022,1759593046818,-500.0,0.00019479,2]
[389157024,1759593046828,-652.81485953,0.00019596,2]
[389157026,1759593046837,-151.0,0.000196,2]
[389157027,1759593046846,-1407.79756957,0.00019636,2]
[389157028,1759593046856,-210.16262244,0.00019645,2]
[389157029,1759593046866,-303.00000303,0.00019656,2]
[389157030,1759593046876,-151.0,0.000197,2]
[389157031,1759593046885,-151.0,0.000197,2]
[389157032,1759593046896,-1000.0,0.00019721,2]
[389157033,1759593046905,-1000.0,0.00019721,2]
[389157034,1759593046915,-1000.0,0.00019721,2]
[389157035,1759593046924,-1000.0,0.00019721,2]
[389157036,1759593046934,-500.0,0.00019721,2]
[389157038,1759593046943,-504.26767412,0.00019721,2]
[389157039,1759593046954,-204.48709848,0.00019726,2]
[389157040,1759593046964,-500.0,0.00019726,2]
[389157041,1759593046974,-500.0,0.00019726,2]
[389157042,1759593046985,-500.0,0.00019726,2]
[389157043,1759593046994,-500.0,0.00019726,2]
[389157044,1759593047003,-500.0,0.00019726,2]
[389157045,1759593047013,-500.0,0.00019726,2]
[389157046,1759593047023,-500.0,0.00019726,2]
[389157047,1759593047032,-500.0,0.00019726,2]
[389157048,1759593047042,-500.0,0.00019726,2]
[389157049,1759593047052,-158.53661779,0.00019726,2]
[389157050,1759593047063,-500.0,0.00019726,2]
[389157051,1759593047074,-500.0,0.00019726,2]
[389157052,1759593047085,-500.0,0.00019726,2]
[389157053,1759593047095,-500.0,0.00019726,2]
[389157054,1759593047104,-500.0,0.00019726,2]
[389157055,1759593047114,-500.0,0.00019726,2]
[389157056,1759593047124,-500.0,0.00019726,2]
[389157057,1759593047134,-500.0,0.00019726,2]
[389157058,1759593047143,-749.21,0.00019726,2]
[389157060,1759593047153,-553.43,0.00019726,2]
[389157062,1759593047162,-500.0,0.00019726,2]
[389157064,1759593047172,-500.0,0.00019726,2]
[389157065,1759593047182,-500.0,0.00019726,2]
[389157066,1759593047192,-312.53620576,0.00019726,2]
[389157067,1759593047201,-500.0,0.00019726,2]
[389157068,1759593047212,-500.0,0.00019726,2]
[389157069,1759593047221,-500.0,0.00019726,2]
[389157070,1759593047231,-500.0,0.00019726,2]
[389157071,1759593047241,-500.0,0.00019726,2]
[389157072,1759593047251,-500.0,0.00019726,2]
[389157073,1759593047262,-500.0,0.00019726,2]
[389157074,1759593047272,-500.0,0.00019726,2]
[389157075,1759593047283,-500.0,0.00019726,2]
[389157076,1759593047293,-341.08258778,0.00019726,2]
[389157077,1759593047302,-500.0,0.00019726,2]
[389157078,1759593047313,-500.0,0.00019726,2]
[389157079,1759593047323,-592.33,0.00019726,2]
[389157080,1759593047333,-612.18,0.00019726,2]
[389157081,1759593047342,-500.0,0.00019726,2]
[389157082,1759593047352,-500.0,0.00019726,2]
[389157083,1759593047362,-500.0,0.00019726,2]
[389157084,1759593047372,-597.37,0.00019726,2]
[389157085,1759593047382,-500.0,0.00019726,2]
[389157086,1759593047392,-500.0,0.00019726,2]
[389157087,1759593047406,-1880.73,0.00019726,2]
[389157088,1759593047416,-561.95,0.00019726,2]
[389157089,1759593047427,-1220.52,0.00019726,2]
[389157090,1759593047437,-500.0,0.00019726,2]
[389157091,1759593047449,-500.0,0.00019726,2]
[389157092,1759593047459,-946.68,0.00019726,2]
[389157093,1759593047469,-500.0,0.00019726,2]
[389157094,1759593047479,-500.0,0.00019726,2]
[389157095,1759593047488,-883.67,0.00019726,2]
[389157096,1759593047498,-500.0,0.00019726,2]
[389157097,1759593047508,-500.0,0.00019726,2]
[389157098,1759593047518,-500.0,0.00019726,2]
[389157099,1759593047528,-500.0,0.00019726,2]
[389157100,1759593047537,-500.0,0.00019726,2]
[389157101,1759593047546,-695.58,0.00019726,2]
[389157102,1759593047556,-500.0,0.00019726,2]
[389157103,1759593047565,-500.0,0.00019726,2]
[389157104,1759593047575,-500.0,0.00019726,2]
[389157105,1759593047584,-500.0,0.00019726,2]
[389157106,1759593047594,-500.0,0.00019726,2]
[389157107,1759593047604,-500.0,0.00019726,2]
[389157108,1759593047614,-500.0,0.00019726,2]
[389157109,1759593047624,-811.13,0.00019726,2]
[389157110,1759593047634,-1711.96,0.00019726,2]
[389157111,1759593047644,-704.65,0.00019726,2]
[389157112,1759593047654,-767.26,0.00019726,2]
[389157113,1759593047664,-500.0,0.00019726,2]
[389157114,1759593047674,-500.0,0.00019726,2]
[389157115,1759593047684,-500.0,0.00019726,2]
[389157116,1759593047694,-500.0,0.00019726,2]
[389157117,1759593047704,-500.0,0.00019726,2]
[389157118,1759593047714,-924.94,0.00019726,2]
[389157119,1759593047724,-500.0,0.00019726,2]
[389157120,1759593047734,-500.0,0.00019726,2]
[389157121,1759593047743,-500.0,0.00019726,2]
[389157122,1759593047753,-500.0,0.00019726,2]
[389157123,1759593047763,-500.0,0.00019726,2]
[389157124,1759593047772,-500.0,0.00019726,2]
[389157125,1759593047782,-500.0,0.00019726,2]
[389157126,1759593047791,-823.2,0.00019726,2]
[389157127,1759593047800,-500.0,0.00019726,2]
[389157128,1759593047811,-985.96,0.00019726,2]
[389157129,1759593047821,-500.0,0.00019726,2]
[389157130,1759593047830,-627.27,0.00019726,2]
[389157131,1759593047840,-500.0,0.00019726,2]
[389157132,1759593047850,-219.98575775,0.00019726,2]
[389157133,1759593047860,-500.0,0.00019726,2]
[389157134,1759593047869,-500.0,0.00019726,2]
[389157135,1759593047880,-532.82,0.00019726,2]
[389157136,1759593047890,-500.0,0.00019726,2]
[389157137,1759593047901,-1949.45,0.00019726,2]
[389157138,1759593047911,-500.0,0.00019726,2]
[389157139,1759593047921,-3303.91,0.00019726,2]
[389157140,1759593047931,-500.0,0.00019726,2]
[389157141,1759593047940,-585.77604444,0.00019726,2]
[389157142,1759593047950,-500.0,0.00019726,2]
[389157143,1759593047959,-566.96,0.00019726,2]
[389157144,1759593047969,-500.0,0.00019726,2]
[389157145,1759593047979,-500.0,0.00019726,2]
[389157146,1759593047989,-500.0,0.00019726,2]
[389157147,1759593047998,-500.0,0.00019726,2]
[389157148,1759593048008,-1119.98,0.00019726,2]
[389157149,1759593048018,-500.0,0.00019726,2]
[389157150,1759593048028,-500.0,0.00019726,2]
[389157151,1759593048038,-500.0,0.00019726,2]
[389157152,1759593048049,-500.0,0.00019726,2]
[389157153,1759593048059,-500.0,0.00019726,2]
[389157154,1759593048069,-500.0,0.00019726,2]
[389157155,1759593048079,-500.0,0.00019726,2]
[389157156,1759593048089,-500.0,0.00019726,2]
[389157157,1759593048099,-500.0,0.00019726,2]
[389157158,1759593048109,-500.0,0.00019726,2]
[389157159,1759593048119,-545.28,0.00019726,2]
[389157160,1759593048129,-1261.68,0.00019726,2]
[389157161,1759593048139,-500.0,0.00019726,2]
[389157162,1759593048148,-500.0,0.00019726,2]
[389157163,1759593048158,-3676.63,0.00019726,2]
[389157164,1759593048168,-637.38,0.00019726,2]
[389157165,1759593048179,-568.41,0.00019726,2]
[389157166,1759593048188,-500.0,0.00019726,2]
[389157167,1759593048198,-500.0,0.00019726,2]
[389157168,1759593048208,-500.0,0.00019726,2]
[389157169,1759593048219,-500.0,0.00019726,2]